Workbook

Sheet Closed End Seconds (FL)
O1: Wholesale Ratesheet
H3: 19000 MacArthur Blvd, Suite 300 | P3: 30 Day Lock Period
H4: Irvine, CA 92612 | N4: Borrower Paid Compensation
N5: Effective Date: | O5: 2024-05-01
A6: Closed End Seconds | R6: Calculator does not verify eligibility. Please use in conjunction with product matrix.
T8: Inputs | U8: =O5 -> 2024-05-01
A9: Base Rate / Base Price | F9: FICO/HCLTV Price Adjustments | R9: Interest Rate → | T9: 0
A10: Rate | B10: Full Doc | C10: Alt Doc | H10: HCLTV 00.01-50 | I10: HCLTV 50.01-55 | J10: HCLTV 55.01-60 | K10: HCLTV 60.01-65 | L10: HCLTV 65.01-70 | M10: HCLTV 70.01-75 | N10: HCLTV 75.01-80 | O10: HCLTV 80.01-85 | P10: HCLTV 85.01-90 | R10: LTV Range | T10: Choose a Selection
A11: 8.25 | B11: 98.375 | F11: ≥ 800 | H11: 0.375 | I11: 0.25 | J11: 0.125 | K11: -0.125 | L11: -0.25 | M11: -0.75 | N11: -1.625 | O11: -3.5 | R11: FICO Range | T11: Choose a Selection | U11: =IF(T11="Choose a Selection",0,IF(OR(T10='Feed(WS)'!B3:B5),INDEX(H11:H18,MATCH(T11,F11:F18,0)),INDEX(H11:P18,MATCH(T11,F11:F18,0),MATCH(T10,H10:P10,0)))) -> 0
A12: 8.375 | B12: 98.625 | F12: 780 - 799 | H12: 0.25 | I12: 0.125 | J12: -0.125 | K12: -0.25 | L12: -0.375 | M12: -1 | N12: -1.875 | O12: -3.75 | R12: Loan Program | T12: Choose a Selection | U12: =IF(T12="Choose a Selection",0,INDEX($L$21:$L$22,MATCH($T$12,$J$21:$J$22,0))) -> 0
A13: 8.5 | B13: 98.875 | C13: 98.375 | F13: 760 - 779 | H13: 0.125 | I13: -0.125 | J13: -0.25 | K13: -0.375 | L13: -0.625 | M13: -1.375 | N13: -2.125 | O13: -4.25 | R13: Doc Type | T13: Choose a Selection | U13: =IF(OR(T13="Choose a Selection",T13='Feed(WS)'!C4,T13='Feed(WS)'!C5,T13='Feed(WS)'!C6),0,INDEX($H$22:$H$40,MATCH($T$13,$F$22:$F$40,0))) -> 0 | V13: ='Feed(WS)'!B64 -> 0
A14: 8.625 | B14: 99.125 | C14: 98.625 | F14: 740 - 759 | H14: -0.125 | I14: -0.25 | J14: -0.375 | K14: -0.625 | L14: -1.125 | M14: -1.625 | N14: -2.75 | O14: -5.25 | R14: Additional Adjustments | T14: Choose a Selection | U14: =IF(OR(T14="Choose a Selection",T14='Feed(WS)'!D3),0,INDEX($H$22:$H$40,MATCH($T$14,$F$22:$F$40,0))) -> 0
A15: 8.75 | B15: 99.375 | C15: 98.875 | F15: 720 - 739 | H15: -0.25 | I15: -0.375 | J15: -0.875 | K15: -1.125 | L15: -1.5 | M15: -2 | N15: -3.5 | O15: -6.5 | R15: Citizenships | T15: Choose a Selection | U15: =IF(T15="Choose a Selection",0,IF(OR(T15='Feed(WS)'!L3:L5),0,INDEX($H$22:$H$40,MATCH($T$15,$F$22:$F$40,0)))) -> 0
A16: 8.875 | B16: 99.625 | C16: 99.125 | F16: 700 - 719 | H16: -1 | I16: -1.25 | J16: -1.75 | K16: -2.25 | L16: -2.625 | M16: -2.875 | N16: -5 | O16: -7.75 | R16: DTI | T16: Choose a Selection | U16: =IF(T16="Choose a Selection",0,IF(OR(T16='Feed(WS)'!E6),0,INDEX($H$22:$H$40,MATCH($T$16,$F$22:$F$40,0)))) -> 0
A17: 9 | B17: 99.875 | C17: 99.375 | F17: 680 - 699 | H17: -2.5 | I17: -2.75 | J17: -3.25 | K17: -3.75 | L17: -4 | M17: -4.75 | N17: -7.25 | R17: Loan Balance | T17: Choose a Selection | U17: =IF(OR(T17="Choose a Selection",T17='Feed(WS)'!F3),0,INDEX($H$22:$H$40,MATCH($T$17,$F$22:$F$40,0))) -> 0
A18: 9.125 | B18: 100.125 | C18: 99.625 | F18: 660 - 679 | H18: -3.5 | I18: -3.75 | J18: -4.25 | K18: -4.75 | L18: -5 | M18: -6.25 | R18: Occupancy | T18: Choose a Selection | U18: =IF(T18="Choose a Selection",0,IF(OR(T18='Feed(WS)'!I3),0,INDEX($H$22:$H$40,MATCH($T$18,$F$22:$F$40,0)))) -> 0
A19: 9.25 | B19: 100.375 | C19: 99.875 | R19: Property Type | T19: Choose a Selection | U19: =IF(T19="Choose a Selection",0,IF(OR(T19='Feed(WS)'!H3),0,INDEX($H$22:$H$40,MATCH($T$19,$F$22:$F$40,0)))) -> 0
A20: 9.375 | B20: 100.625 | C20: 100.125 | F20: Loan Level Price Adjustments | J20: Loan Program | N20: Max Price | R20: Loan Term | T20: 30YR Fixed | U20: =INDEX($L$25:$L$27,MATCH($T$20,$J$25:$J$27,0)) -> 0
A21: 9.5 | B21: 100.875 | C21: 100.375 | H21: LLPA | J21: Standalone Second | L21: 0 | N21: 102 | R21: State | T21: Choose a Selection | U21: 0
A22: 9.625 | B22: 101.375 | C22: 100.875 | F22: Select Full Doc | H22: 1 | J22: Concurrent Second | L22: 0 | R22: Credit Event | T22: Choose a Selection | U22: 0
A23: 9.75 | B23: 101.875 | C23: 101.375 | F23: Investment Property | H23: -4 | N23: NC Floor Price | R23: Housing History | T23: Choose a Selection | U23: 0
A24: 9.875 | B24: 102.375 | C24: 101.875 | F24: Second Home | H24: -1 | J24: Loan Term | N24: 99.75 | R24: Lock Term | T24: 30 Day | U24: =INDEX($L$30:$L$32,MATCH($T$24,$J$30:$J$32,0)) -> 0
A25: 10 | B25: 102.875 | C25: 102.375 | F25: 2 - 4 Units | H25: -0.5 | J25: 30YR Fixed | L25: 0 | R25: =IF(U25=0,"",IF(U25=0.25,"CES Special","CES/State Special")) ->  | T25: =IF(U25=0,"Not Applicable","Yes") -> Not Applicable | U25: =IF(T10<>"Choose a Selection",IF(OR(T21='Feed(WS)'!N3,T21='Feed(WS)'!N5:N6),0.5,0.25),0) -> 0
A26: 10.125 | B26: 103.125 | C26: 102.625 | F26: Condo | H26: -0.5 | J26: 20YR Fixed | L26: 0.125 | N26: Max Rate (CA) | R26: Total LLPA | U26: =SUM(U11:U25)+V13 -> 0
A27: 10.25 | B27: 103.375 | C27: 102.875 | F27: $100,001-$125,000 | H27: 0.25 | J27: 10YR Fixed | L27: 0.125 | N27: 12.25 | R27: Gross Rate Sheet Price (Prior to LLPAs) | U27: =INDEX(A10:D55,MATCH(T9,A10:A55,0),MATCH(IF(T13='Feed(WS)'!C3,'Feed(WS)'!C4,T13),B10:D10,0)+1) -> 
A28: 10.375 | B28: 103.625 | C28: 103.125 | F28: $125,001-$150,000 | H28: 0.375 | R28: Net Price: Rate Sheet - LLPA (Prior to Min/Max YSP) | U28: =IFERROR(IF(AND(T9<>'Feed(WS)'!K137,U29=N24),NA(),U27+U26),"Minimum Rate") -> Minimum Rate
A29: 10.5 | B29: 103.875 | C29: 103.375 | F29: $150,001-$350,000 | H29: 0.5 | J29: Lock Days | N29: CES SPECIAL | R29: Max YSP | U29: ='Feed(WS)'!E136 -> 0
A30: 10.625 | B30: 104.125 | C30: 103.625 | F30: $350,001-$500,000 | G30: 0 | H30: 0.5 | J30: 15 Day | L30: 0 | N30: 25 BPS on all CES Loans *Can be combined with Select | R30: Final Price → | U30: =IF(OR(U26="#NA",U27="#NA",U28="Minimum Rate"),NA(),IF(AND(IF(U28>U29,U29,U28)<'Feed(WS)'!E147,T21='Feed(WS)'!N5),NA(),IF(U28>U29,U29,U28))) -> 
A31: 10.75 | B31: 104.375 | C31: 103.875 | F31: $500,001-$750,000 | G31: 0 | H31: 0 | J31: 30 Day | L31: 0 | R31: • Borrower Paid Compensation Only, Max 2.000% • No Underwriting Fee Buyout
A32: 10.875 | B32: 104.625 | C32: 104.125 | F32: Asset Utilization | G32: 0 | H32: -0.5 | J32: 45 Day | L32: -0.5 | V32: =IF(OR(T10:T24="Choose a Selection"),"",CONCATENATE('Feed(WS)'!I137," ",'Feed(WS)'!K137,"%"&" @ "&'Feed(WS)'!L137)) -> 
A33: 11 | B33: 104.875 | C33: 104.375 | F33: 1099 Only | G33: 0 | H33: -0.5
A34: 11.125 | B34: 105.125 | C34: 104.625 | F34: WVOE Only | G34: 0 | H34: -0.5 | J34: Allowable Fees | N34: STATE SPECIAL
A35: 11.25 | B35: 105.375 | C35: 104.875 | F35: 1yr Self Employed | G35: 0 | H35: -0.5 | J35: Click Here | N35: 25 BPS on all CES Loans *Excludes California *Can be combined with CES Special and Select *Ends at the end of May
A36: 11.375 | B36: 105.625 | C36: 105.125 | F36: ITIN | H36: -2.5
A37: 11.5 | B37: 105.875 | C37: 105.375 | F37: Foreign Nat' With Fico | H37: -1.5 | R37: Temporary Guidance See Below Extension Cost 2 bps / day Extension Cost Current lock extension costs/policies apply to all active locks, regardless of lock date All 45 day locks are at a 50bp cost and are not eligible for lock extensions
A38: 11.625 | B38: 106.125 | C38: 105.625 | F38: DTI 00.01-43 | H38: 0
A39: 11.75 | B39: 106.375 | C39: 105.875 | F39: DTI 43.01-45 | H39: -0.5
A40: 11.875 | B40: 106.625 | C40: 106.125 | F40: DTI 45.01-50 | G40: 0 | H40: -1
A41: 12 | B41: 106.875 | C41: 106.375
A42: 12.125 | B42: 107.125 | C42: 106.625
A43: 12.25 | B43: 107.375 | C43: 106.875
A44: 12.375 | B44: 107.625 | C44: 107.125
A45: 12.5 | B45: 107.875 | C45: 107.375
A46: 12.625 | B46: 108 | C46: 107.5
A47: 12.75 | B47: 108.125 | C47: 107.625
A48: 12.875 | B48: 108.25 | C48: 107.75
A49: 13 | B49: 108.375 | C49: 107.875
A50: 13.125 | B50: 108.5 | C50: 108
A51: 13.25 | B51: 108.625 | C51: 108.125
A52: 13.375 | B52: 108.75 | C52: 108.25
A53: 13.5 | B53: 108.875 | C53: 108.375
A54: 13.625 | B54: 109 | C54: 108.5
A55: 13.75 | B55: 109.125 | C55: 108.625

Sheet Feed(WS) (hidden)
A1: FICO | B1: LTV | C1: Doc Type | D1: Additional Adjustments | E1: DTI | F1: Loan Amount | G1: Prepayment Penalties | H1: Property Type | I1: Occupancy | J1: Term | K1: Lock Period | L1: Citizenships | M1: Loan Program | N1: State | O1: Credit Event | P1: Housing History
A2: Choose a Selection | B2: Choose a Selection | C2: Choose a Selection | D2: Choose a Selection | E2: Choose a Selection | F2: Choose a Selection | G2: Choose a Selection | H2: Choose a Selection | I2: Choose a Selection | J2: Choose a Selection | K2: Choose a Selection | L2: Choose a Selection | M2: Choose a Selection | N2: Choose a Selection | O2: Choose a Selection | P2: Choose a Selection
A3: ≥ 800 | B3: HCLTV 00.01-40 | C3: Select Full Doc | D3: None in this Dropdown | E3: DTI 00.01-43 | F3: =100000 -> 100000 | G3: No PPP | H3: 1 Unit | I3: Primary | J3: 30YR Fixed | K3: 15 Day | L3: US Citizen | M3: Standalone Second | N3: All Other States | O3: Credit Event < 48 Months | P3: 0x30x12
A4: 780 - 799 | B4: HCLTV 40.01-45 | C4: Full Doc | D4: Asset Utilization | E4: DTI 43.01-45 | F4: $100,001-$125,000 | G4: 12 Months | H4: 2 - 4 Units | I4: Second Home | J4: 20YR Fixed | K4: 30 Day | L4: Permanent Resident | M4: Concurrent Second | N4: California | O4: Credit Event ≥ 48 and < 84 Months | P4: 0x30x24
A5: 760 - 779 | B5: HCLTV 45.01-50 | C5: Alt Doc | D5: 1099 Only | E5: DTI 45.01-50 | F5: $125,001-$150,000 | G5: 24 Months | H5: Condo | I5: Investment Property | J5: 10YR Fixed | K5: 45 Day | L5: Non Perm Resident | N5: North Carolina | O5: Credit Event ≥ 84 Months | P5: Other
A6: 740 - 759 | B6: HCLTV 50.01-55 | C6: DSCR | D6: WVOE Only | E6: No DTI Program | F6: $150,001-$350,000 | L6: ITIN | N6: Tennessee
A7: 720 - 739 | B7: HCLTV 55.01-60 | D7: 1yr Self Employed | F7: $350,001-$500,000 | L7: Foreign Nat' With Fico
A8: 700 - 719 | B8: HCLTV 60.01-65 | D8: DSCR - STR | F8: $500,001-$750,000
A9: 680 - 699 | B9: HCLTV 65.01-70
A10: 660 - 679 | B10: HCLTV 70.01-75
B11: HCLTV 75.01-80
B12: HCLTV 80.01-85
B13: HCLTV 85.01-90
A38: Disqualifiers | E38: Full Doc Disqualifiers | G38: Alt Doc Disqualifiers | I38: Select Full Doc Disqualifiers | K38: DSCR Disqualifiers
A39: NAs on DTI >45% on LTVs>80% | B39: =IF(AND(OR('Closed End Seconds (FL)'!T10=B12:B13),'Closed End Seconds (FL)'!T16=E5),NA(),"") ->  | E39: NAs on Primary/100k-350k/LTVs>85%/FICOs<720 | F39: =IF(AND(OR('Closed End Seconds (FL)'!T17=F4:F6),OR('Closed End Seconds (FL)'!T18=I3),OR('Closed End Seconds (FL)'!T10=B13),OR('Closed End Seconds (FL)'!T11=A8:A10)),NA(),"") ->  | G39: NAs on Primary/100k-350k/LTVs>85% | H39: =IF(AND(OR('Closed End Seconds (FL)'!T17=F4:F6),OR('Closed End Seconds (FL)'!T18=I3),OR('Closed End Seconds (FL)'!T10=B13),OR('Closed End Seconds (FL)'!T13=C5)),NA(),"") ->  | I39: NAs on Primary/100k-350k/LTVs>80%/All FICOs | J39: =IF(AND(OR('Closed End Seconds (FL)'!T17=F4:F6),OR('Closed End Seconds (FL)'!T18=I3),OR('Closed End Seconds (FL)'!T10=B12:B13),OR('Closed End Seconds (FL)'!T11=A3:A10),OR('Closed End Seconds (FL)'!T13=C3)),NA(),"") ->  | K39: NAs on NOO/100k-350k/LTVs>75% | L39: =IF(AND(OR('Closed End Seconds (FL)'!T17=F4:F6),OR('Closed End Seconds (FL)'!T18=I5),OR('Closed End Seconds (FL)'!T10=B11:B13),OR('Closed End Seconds (FL)'!T13=C6)),NA(),"") -> 
E40: NAs on Primary/100k-350k/LTVs>80%/FICOs<700 | F40: =IF(AND(OR('Closed End Seconds (FL)'!T17=F4:F6),OR('Closed End Seconds (FL)'!T18=I3),OR('Closed End Seconds (FL)'!T10=B12:B13),OR('Closed End Seconds (FL)'!T11=A9:A10)),NA(),"") ->  | G40: NAs on Primary/100k-350k/LTVs>80%/FICOs<720 | H40: =IF(AND(OR('Closed End Seconds (FL)'!T17=F4:F6),OR('Closed End Seconds (FL)'!T18=I3),OR('Closed End Seconds (FL)'!T10=B12:B13),OR('Closed End Seconds (FL)'!T11=A8:A10),OR('Closed End Seconds (FL)'!T13=C5)),NA(),"") ->  | I40: NAs on Primary/100k-350k/LTVs>75%/FICOs<700 | J40: =IF(AND(OR('Closed End Seconds (FL)'!T17=F4:F6),OR('Closed End Seconds (FL)'!T18=I3),OR('Closed End Seconds (FL)'!T10=B11:B13),OR('Closed End Seconds (FL)'!T11=A9:A10),OR('Closed End Seconds (FL)'!T13=C3)),NA(),"") ->  | K40: NAs on NOO/100k-350k/LTVs>70%/FICOs<720 | L40: =IF(AND(OR('Closed End Seconds (FL)'!T17=F4:F6),OR('Closed End Seconds (FL)'!T18=I5),OR('Closed End Seconds (FL)'!T10=B10:B13),OR('Closed End Seconds (FL)'!T11=A8:A10),OR('Closed End Seconds (FL)'!T13=C6)),NA(),"") -> 
A41: Nas on TN state | B41: =IF('Closed End Seconds (FL)'!T21=N6,NA(),"") ->  | E41: NAs on Primary/100k-350k/LTVs>75%/FICOs<680 | F41: =IF(AND(OR('Closed End Seconds (FL)'!T17=F4:F6),OR('Closed End Seconds (FL)'!T18=I3),OR('Closed End Seconds (FL)'!T10=B11:B13),OR('Closed End Seconds (FL)'!T11=A10)),NA(),"") ->  | G41: NAs on Primary/100k-350k/LTVs>75%/FICOs<700 | H41: =IF(AND(OR('Closed End Seconds (FL)'!T17=F4:F6),OR('Closed End Seconds (FL)'!T18=I3),OR('Closed End Seconds (FL)'!T10=B11:B13),OR('Closed End Seconds (FL)'!T11=A9:A10),OR('Closed End Seconds (FL)'!T13=C5)),NA(),"") ->  | I41: NAs on Primary/350k-500k/LTVs>75% | J41: =IF(AND(OR('Closed End Seconds (FL)'!T17=F7),OR('Closed End Seconds (FL)'!T18=I3),OR('Closed End Seconds (FL)'!T10=B11:B13),OR('Closed End Seconds (FL)'!T13=C3)),NA(),"") ->  | K41: NAs on NOO/100k-350k/LTVs>65%/FICOs<700 | L41: =IF(AND(OR('Closed End Seconds (FL)'!T17=F4:F6),OR('Closed End Seconds (FL)'!T18=I5),OR('Closed End Seconds (FL)'!T10=B9:B13),OR('Closed End Seconds (FL)'!T11=A9:A10),OR('Closed End Seconds (FL)'!T13=C6)),NA(),"") -> 
A42: 2-4 Units/Condo NAs LTVs>75% | B42: =IF(AND(OR('Closed End Seconds (FL)'!T10=B11:B13),OR('Closed End Seconds (FL)'!T19=H4:H5)),NA(),"") ->  | E42: NAs on Primary/350k-500k/LTVs>80% | F42: =IF(AND(OR('Closed End Seconds (FL)'!T17=F7),OR('Closed End Seconds (FL)'!T18=I3),OR('Closed End Seconds (FL)'!T10=B12:B13)),NA(),"") ->  | G42: NAs on Primary/100k-350k/LTVs>70%/FICOs<680 | H42: =IF(AND(OR('Closed End Seconds (FL)'!T17=F4:F6),OR('Closed End Seconds (FL)'!T18=I3),OR('Closed End Seconds (FL)'!T10=B10:B13),OR('Closed End Seconds (FL)'!T11=A10),OR('Closed End Seconds (FL)'!T13=C5)),NA(),"") ->  | I42: NAs on Primary/350k-500k/FICOs<720 | J42: =IF(AND(OR('Closed End Seconds (FL)'!T17=F7),OR('Closed End Seconds (FL)'!T18=I3),OR('Closed End Seconds (FL)'!T11=A8:A10),OR('Closed End Seconds (FL)'!T13=C3)),NA(),"") ->  | K42: NAs on NOO/100k-350k/LTVs>60%/FICOs<680 | L42: =IF(AND(OR('Closed End Seconds (FL)'!T17=F4:F6),OR('Closed End Seconds (FL)'!T18=I5),OR('Closed End Seconds (FL)'!T10=B8:B13),OR('Closed End Seconds (FL)'!T11=A10),OR('Closed End Seconds (FL)'!T13=C6)),NA(),"") -> 
A43: NAs on 2nd Home/2-4 Units | B43: =IF(AND(OR('Closed End Seconds (FL)'!T18=I4),OR('Closed End Seconds (FL)'!T19=H4)),NA(),"") ->  | E43: NAs on Primary/350k-500k/LTVs>75%/FICOs<700 | F43: =IF(AND(OR('Closed End Seconds (FL)'!T17=F7),OR('Closed End Seconds (FL)'!T18=I3),OR('Closed End Seconds (FL)'!T10=B11:B13),OR('Closed End Seconds (FL)'!T11=A9:A10)),NA(),"") ->  | G43: NAs on Primary/350k-500k/LTVs>75% | H43: =IF(AND(OR('Closed End Seconds (FL)'!T17=F7),OR('Closed End Seconds (FL)'!T18=I3),OR('Closed End Seconds (FL)'!T10=B11:B13),OR('Closed End Seconds (FL)'!T13=C5)),NA(),"") ->  | I43: NAs on Primary/>500k/FICOs<720 | J43: =IF(AND(OR('Closed End Seconds (FL)'!T17=F8),OR('Closed End Seconds (FL)'!T18=I3),OR('Closed End Seconds (FL)'!T11=A8:A10),OR('Closed End Seconds (FL)'!T13=C3)),NA(),"") ->  | K43: NAs on NOO/350k-500k/LTVs>65% | L43: =IF(AND(OR('Closed End Seconds (FL)'!T17=F7),OR('Closed End Seconds (FL)'!T18=I5),OR('Closed End Seconds (FL)'!T10=B9:B13),OR('Closed End Seconds (FL)'!T13=C6)),NA(),"") -> 
A44: Nas Select Credit Event ≥ 48 and < 84 Months | B44: =IF(AND('Closed End Seconds (FL)'!T13=C3,'Closed End Seconds (FL)'!T22=O4),NA(),"") ->  | E44: NAs on Primary/350k-500k/LTVs>70%/FICOs<680 | F44: =IF(AND(OR('Closed End Seconds (FL)'!T17=F7),OR('Closed End Seconds (FL)'!T18=I3),OR('Closed End Seconds (FL)'!T10=B10:B13),OR('Closed End Seconds (FL)'!T11=A10)),NA(),"") ->  | G44: NAs on Primary/350k-500k/LTVs>70%/FICOs<740 | H44: =IF(AND(OR('Closed End Seconds (FL)'!T17=F7),OR('Closed End Seconds (FL)'!T18=I3),OR('Closed End Seconds (FL)'!T10=B10:B13),OR('Closed End Seconds (FL)'!T11=A7:A10),OR('Closed End Seconds (FL)'!T13=C5)),NA(),"") ->  | I44: NAs on all other Doc types/>500k | J44: =IF(AND(OR('Closed End Seconds (FL)'!T17=F8),OR('Closed End Seconds (FL)'!T13=C4:C6)),NA(),"") ->  | K44: NAs on NOO/350k-500k/LTVs>60%/FICOs<720 | L44: =IF(AND(OR('Closed End Seconds (FL)'!T17=F7),OR('Closed End Seconds (FL)'!T18=I5),OR('Closed End Seconds (FL)'!T10=B8:B13),OR('Closed End Seconds (FL)'!T11=A8:A10),OR('Closed End Seconds (FL)'!T13=C6)),NA(),"") -> 
A45: NAs Credit Event < 48 Months | B45: =IF('Closed End Seconds (FL)'!T22=O3,NA(),"") ->  | E45: NAs on NOO/100k-350k/LTVs>80% | F45: =IF(AND(OR('Closed End Seconds (FL)'!T17=F4:F6),OR('Closed End Seconds (FL)'!T18=I5),OR('Closed End Seconds (FL)'!T10=B12:B13)),NA(),"") ->  | G45: NAs on Primary/350k-500k/LTVs>65%/FICOs<700 | H45: =IF(AND(OR('Closed End Seconds (FL)'!T17=F7),OR('Closed End Seconds (FL)'!T18=I3),OR('Closed End Seconds (FL)'!T10=B9:B13),OR('Closed End Seconds (FL)'!T11=A9:A10),OR('Closed End Seconds (FL)'!T13=C5)),NA(),"") ->  | I45: 2-4 Units/ NAs LTVs>65% | J45: =IF(AND(OR('Closed End Seconds (FL)'!T10=B9:B13),OR('Closed End Seconds (FL)'!T19=H4),OR('Closed End Seconds (FL)'!T17=F8)),NA(),"") ->  | K45: NAs on NOO/350k-500k/LTVs>55%/FICOs<700 | L45: =IF(AND(OR('Closed End Seconds (FL)'!T17=F7),OR('Closed End Seconds (FL)'!T18=I5),OR('Closed End Seconds (FL)'!T10=B7:B13),OR('Closed End Seconds (FL)'!T11=A9:A10),OR('Closed End Seconds (FL)'!T13=C6)),NA(),"") -> 
A46: Nas Select on 0x30x12 | B46: =IF(AND('Closed End Seconds (FL)'!T13=C3,'Closed End Seconds (FL)'!T23=P3),NA(),"") ->  | E46: NAs on NOO/100k-350k/LTVs>75%/FICOs<700 | F46: =IF(AND(OR('Closed End Seconds (FL)'!T17=F4:F6),OR('Closed End Seconds (FL)'!T18=I5),OR('Closed End Seconds (FL)'!T10=B11:B13),OR('Closed End Seconds (FL)'!T11=A9:A10)),NA(),"") ->  | G46: NAs on Primary/350k-500k/LTVs>60%/FICOs<680 | H46: =IF(AND(OR('Closed End Seconds (FL)'!T17=F7),OR('Closed End Seconds (FL)'!T18=I3),OR('Closed End Seconds (FL)'!T10=B8:B13),OR('Closed End Seconds (FL)'!T11=A10),OR('Closed End Seconds (FL)'!T13=C5)),NA(),"") ->  | K46: NAs on NOO/350k-500k/LTVs>50%/FICOs<680 | L46: =IF(AND(OR('Closed End Seconds (FL)'!T17=F7),OR('Closed End Seconds (FL)'!T18=I5),OR('Closed End Seconds (FL)'!T10=B6:B13),OR('Closed End Seconds (FL)'!T11=A10),OR('Closed End Seconds (FL)'!T13=C6)),NA(),"") -> 
A47: Nas on other for Housing History | B47: =IF('Closed End Seconds (FL)'!T23=P5,NA(),"") ->  | E47: NAs on NOO/100k-350k/LTVs>70%/FICOs<680 | F47: =IF(AND(OR('Closed End Seconds (FL)'!T17=F4:F6),OR('Closed End Seconds (FL)'!T18=I5),OR('Closed End Seconds (FL)'!T10=B10:B13),OR('Closed End Seconds (FL)'!T11=A10)),NA(),"") ->  | G47: NAs on NOO/100k-350k/LTVs>75% | H47: =IF(AND(OR('Closed End Seconds (FL)'!T17=F4:F6),OR('Closed End Seconds (FL)'!T18=I5),OR('Closed End Seconds (FL)'!T10=B11:B13),OR('Closed End Seconds (FL)'!T13=C5)),NA(),"") -> 
A48: NA for Max Rate | B48: =IF(E143="","",IF('Closed End Seconds (FL)'!T9>E143,NA(),"")) ->  | E48: NAs on NOO/350k-500k/LTVs>75% | F48: =IF(AND(OR('Closed End Seconds (FL)'!T17=F7),OR('Closed End Seconds (FL)'!T18=I5),OR('Closed End Seconds (FL)'!T10=B11:B13)),NA(),"") ->  | G48: NAs on NOO/100k-350k/LTVs>70%/FICOs<720 | H48: =IF(AND(OR('Closed End Seconds (FL)'!T17=F4:F6),OR('Closed End Seconds (FL)'!T18=I5),OR('Closed End Seconds (FL)'!T10=B10:B13),OR('Closed End Seconds (FL)'!T11=A8:A10),OR('Closed End Seconds (FL)'!T13=C5)),NA(),"") -> 
E49: NAs on NOO/350k-500k/LTVs>70%/FICOs<720 | F49: =IF(AND(OR('Closed End Seconds (FL)'!T17=F7),OR('Closed End Seconds (FL)'!T18=I5),OR('Closed End Seconds (FL)'!T10=B10:B13),OR('Closed End Seconds (FL)'!T11=A8:A10)),NA(),"") ->  | G49: NAs on NOO/100k-350k/LTVs>65%/FICOs<700 | H49: =IF(AND(OR('Closed End Seconds (FL)'!T17=F4:F6),OR('Closed End Seconds (FL)'!T18=I5),OR('Closed End Seconds (FL)'!T10=B9:B13),OR('Closed End Seconds (FL)'!T11=A9:A10),OR('Closed End Seconds (FL)'!T13=C5)),NA(),"") -> 
E50: NAs on NOO/350k-500k/LTVs>65%/FICOs<700 | F50: =IF(AND(OR('Closed End Seconds (FL)'!T17=F7),OR('Closed End Seconds (FL)'!T18=I5),OR('Closed End Seconds (FL)'!T10=B9:B13),OR('Closed End Seconds (FL)'!T11=A9:A10)),NA(),"") ->  | G50: NAs on NOO/100k-350k/LTVs>60%/FICOs<680 | H50: =IF(AND(OR('Closed End Seconds (FL)'!T17=F4:F6),OR('Closed End Seconds (FL)'!T18=I5),OR('Closed End Seconds (FL)'!T10=B8:B13),OR('Closed End Seconds (FL)'!T11=A10),OR('Closed End Seconds (FL)'!T13=C5)),NA(),"") ->  | I50: NAs NOO and Second Home | J50: =IF(AND(OR('Closed End Seconds (FL)'!T13=C3),OR('Closed End Seconds (FL)'!T18=I4:I5)),NA(),"") -> 
E51: NAs on NOO/350k-500k/LTVs>60%/FICOs<680 | F51: =IF(AND(OR('Closed End Seconds (FL)'!T17=F7),OR('Closed End Seconds (FL)'!T18=I5),OR('Closed End Seconds (FL)'!T10=B8:B13),OR('Closed End Seconds (FL)'!T11=A10)),NA(),"") ->  | G51: NAs on NOO/350k-500k/LTVs>65% | H51: =IF(AND(OR('Closed End Seconds (FL)'!T17=F7),OR('Closed End Seconds (FL)'!T18=I5),OR('Closed End Seconds (FL)'!T10=B9:B13),OR('Closed End Seconds (FL)'!T13=C5)),NA(),"") ->  | I51: NAs 2-4 Units | J51: =IF(AND(OR('Closed End Seconds (FL)'!T13=C3),OR('Closed End Seconds (FL)'!T19=H4)),NA(),"") -> 
E52: NAs on 2nd Home/100k-350k/LTVs>80% | F52: =IF(AND(OR('Closed End Seconds (FL)'!T17=F4:F6),OR('Closed End Seconds (FL)'!T18=I4),OR('Closed End Seconds (FL)'!T10=B12:B13)),NA(),"") ->  | G52: NAs on NOO/350k-500k/LTVs>60%/FICOs<720 | H52: =IF(AND(OR('Closed End Seconds (FL)'!T17=F7),OR('Closed End Seconds (FL)'!T18=I5),OR('Closed End Seconds (FL)'!T10=B8:B13),OR('Closed End Seconds (FL)'!T11=A8:A10),OR('Closed End Seconds (FL)'!T13=C5)),NA(),"") ->  | I52: NAs Concurrent | J52: =IF(AND(OR('Closed End Seconds (FL)'!T13=C3),OR('Closed End Seconds (FL)'!T12=M4)),NA(),"") -> 
E53: NAs on 2nd Home/100k-350k/LTVs>75%/FICOs<700 | F53: =IF(AND(OR('Closed End Seconds (FL)'!T17=F4:F6),OR('Closed End Seconds (FL)'!T18=I4),OR('Closed End Seconds (FL)'!T10=B11:B13),OR('Closed End Seconds (FL)'!T11=A9:A10)),NA(),"") ->  | G53: NAs on NOO/350k-500k/LTVs>55%/FICOs<700 | H53: =IF(AND(OR('Closed End Seconds (FL)'!T17=F7),OR('Closed End Seconds (FL)'!T18=I5),OR('Closed End Seconds (FL)'!T10=B7:B13),OR('Closed End Seconds (FL)'!T11=A9:A10),OR('Closed End Seconds (FL)'!T13=C5)),NA(),"") ->  | I53: Nas on <680 FICO | J53: =IF(AND(OR('Closed End Seconds (FL)'!T11=A10),OR('Closed End Seconds (FL)'!T13=C3)),NA(),"") -> 
E54: NAs on 2nd Home/100k-350k/LTVs>60%/FICOs<680 | F54: =IF(AND(OR('Closed End Seconds (FL)'!T17=F4:F6),OR('Closed End Seconds (FL)'!T18=I4),OR('Closed End Seconds (FL)'!T10=B8:B13),OR('Closed End Seconds (FL)'!T11=A10)),NA(),"") ->  | G54: NAs on NOO/350k-500k/LTVs>50%/FICOs<680 | H54: =IF(AND(OR('Closed End Seconds (FL)'!T17=F7),OR('Closed End Seconds (FL)'!T18=I5),OR('Closed End Seconds (FL)'!T10=B6:B13),OR('Closed End Seconds (FL)'!T11=A10),OR('Closed End Seconds (FL)'!T13=C5)),NA(),"") -> 
E55: NAs on 2nd Home/350k-500k/LTVs>70% | F55: =IF(AND(OR('Closed End Seconds (FL)'!T17=F7),OR('Closed End Seconds (FL)'!T18=I4),OR('Closed End Seconds (FL)'!T10=B10:B13)),NA(),"") ->  | G55: NAs on 2nd Home/100k-350k/LTVs>75% | H55: =IF(AND(OR('Closed End Seconds (FL)'!T17=F4:F6),OR('Closed End Seconds (FL)'!T18=I4),OR('Closed End Seconds (FL)'!T10=B11:B13),OR('Closed End Seconds (FL)'!T13=C5)),NA(),"") -> 
E56: NAs on 2nd Home/350k-500k/LTVs>65%/FICOs<700 | F56: =IF(AND(OR('Closed End Seconds (FL)'!T17=F7),OR('Closed End Seconds (FL)'!T18=I4),OR('Closed End Seconds (FL)'!T10=B9:B13),OR('Closed End Seconds (FL)'!T11=A9:A10)),NA(),"") ->  | G56: NAs on 2nd Home/100k-350k/LTVs>70%/FICOs<720 | H56: =IF(AND(OR('Closed End Seconds (FL)'!T17=F4:F6),OR('Closed End Seconds (FL)'!T18=I4),OR('Closed End Seconds (FL)'!T10=B10:B13),OR('Closed End Seconds (FL)'!T11=A8:A10),OR('Closed End Seconds (FL)'!T13=C5)),NA(),"") -> 
E57: NAs on 2nd Home/350k-500k/LTVs>60%/FICOs<680 | F57: =IF(AND(OR('Closed End Seconds (FL)'!T17=F7),OR('Closed End Seconds (FL)'!T18=I4),OR('Closed End Seconds (FL)'!T10=B8:B13),OR('Closed End Seconds (FL)'!T11=A10)),NA(),"") ->  | G57: NAs on 2nd Home/100k-350k/LTVs>65%/FICOs<700 | H57: =IF(AND(OR('Closed End Seconds (FL)'!T17=F4:F6),OR('Closed End Seconds (FL)'!T18=I4),OR('Closed End Seconds (FL)'!T10=B9:B13),OR('Closed End Seconds (FL)'!T11=A9:A10),OR('Closed End Seconds (FL)'!T13=C5)),NA(),"") -> 
G58: NAs on 2nd Home/100k-350k/LTVs>60%/FICOs<680 | H58: =IF(AND(OR('Closed End Seconds (FL)'!T17=F4:F6),OR('Closed End Seconds (FL)'!T18=I4),OR('Closed End Seconds (FL)'!T10=B8:B13),OR('Closed End Seconds (FL)'!T11=A10),OR('Closed End Seconds (FL)'!T13=C5)),NA(),"") -> 
G59: NAs on 2nd Home/350k-500k/LTVs>65% | H59: =IF(AND(OR('Closed End Seconds (FL)'!T17=F7),OR('Closed End Seconds (FL)'!T18=I4),OR('Closed End Seconds (FL)'!T10=B9:B13),OR('Closed End Seconds (FL)'!T13=C5)),NA(),"") -> 
G60: NAs on 2nd Home/350k-500k/LTVs>60%/FICOs<720 | H60: =IF(AND(OR('Closed End Seconds (FL)'!T17=F7),OR('Closed End Seconds (FL)'!T18=I4),OR('Closed End Seconds (FL)'!T10=B8:B13),OR('Closed End Seconds (FL)'!T11=A8:A10),OR('Closed End Seconds (FL)'!T13=C5)),NA(),"") -> 
G61: NAs on 2nd Home/350k-500k/LTVs>55%/FICOs<700 | H61: =IF(AND(OR('Closed End Seconds (FL)'!T17=F7),OR('Closed End Seconds (FL)'!T18=I4),OR('Closed End Seconds (FL)'!T10=B7:B13),OR('Closed End Seconds (FL)'!T11=A9:A10),OR('Closed End Seconds (FL)'!T13=C5)),NA(),"") -> 
G62: NAs on 2nd Home/350k-500k/LTVs>50%/FICOs<680 | H62: =IF(AND(OR('Closed End Seconds (FL)'!T17=F7),OR('Closed End Seconds (FL)'!T18=I4),OR('Closed End Seconds (FL)'!T10=B6:B13),OR('Closed End Seconds (FL)'!T11=A10),OR('Closed End Seconds (FL)'!T13=C5)),NA(),"") -> 
B63: =IF(AND(OR('Closed End Seconds (FL)'!T10=B11:B12),OR('Closed End Seconds (FL)'!T20=J5:J6,'Closed End Seconds (FL)'!T20=J9,'Closed End Seconds (FL)'!T20=J12)),NA(),"") -> 
A64: Total | B64: =SUM(B39:B63)+SUM(F39:F57)+SUM(H39:H62)+SUM(L39:L46)+SUM(J39:J63)+SUM(Z43:Z45)+SUM(AD43) -> 0
B80: Base Rate / Base Price | I80: Base Rate / Base Price
B81: Coupon | C81: Full Doc | D81: Alt Doc | E81: DSCR | G81: Total LLPA | I81: Coupon | J81: Full Doc | K81: Alt Doc | L81: DSCR | N81: 0
B82: ='Closed End Seconds (FL)'!A11 -> 8.25 | C82: ='Closed End Seconds (FL)'!B11 -> 98.375 | D82: ='Closed End Seconds (FL)'!C11 ->  | E82: ='Closed End Seconds (FL)'!D11 -> 0 | G82: =SUM('Closed End Seconds (FL)'!U11:U25)+B64 -> 0 | H82: 1 | I82: =B82 -> 8.25 | J82: =C82+$G$82 -> 98.375 | K82: =D82+$G$82 ->  | L82: =E82+$G$82 -> 0 | N82: =I82:I126 -> 8.25
B83: ='Closed End Seconds (FL)'!A12 -> 8.375 | C83: ='Closed End Seconds (FL)'!B12 -> 98.625 | D83: ='Closed End Seconds (FL)'!C12 ->  | E83: ='Closed End Seconds (FL)'!D12 -> 0 | G83: . | H83: 2 | I83: 8.375 | J83: 98.625 | L83: 0 | N83: 8.375
B84: ='Closed End Seconds (FL)'!A13 -> 8.5 | C84: ='Closed End Seconds (FL)'!B13 -> 98.875 | D84: ='Closed End Seconds (FL)'!C13 -> 98.375 | E84: ='Closed End Seconds (FL)'!D13 -> 0 | G84: Total Price | H84: 3 | I84: 8.5 | J84: 98.875 | K84: 98.375 | L84: 0 | N84: 8.5
B85: ='Closed End Seconds (FL)'!A14 -> 8.625 | C85: ='Closed End Seconds (FL)'!B14 -> 99.125 | D85: ='Closed End Seconds (FL)'!C14 -> 98.625 | E85: ='Closed End Seconds (FL)'!D14 -> 0 | G85: ='Closed End Seconds (FL)'!U30 ->  | H85: 4 | I85: 8.625 | J85: 99.125 | K85: 98.625 | L85: 0 | N85: 8.625
B86: ='Closed End Seconds (FL)'!A15 -> 8.75 | C86: ='Closed End Seconds (FL)'!B15 -> 99.375 | D86: ='Closed End Seconds (FL)'!C15 -> 98.875 | E86: ='Closed End Seconds (FL)'!D15 -> 0 | H86: 5 | I86: 8.75 | J86: 99.375 | K86: 98.875 | L86: 0 | N86: 8.75
B87: ='Closed End Seconds (FL)'!A16 -> 8.875 | C87: ='Closed End Seconds (FL)'!B16 -> 99.625 | D87: ='Closed End Seconds (FL)'!C16 -> 99.125 | E87: ='Closed End Seconds (FL)'!D16 -> 0 | H87: 6 | I87: 8.875 | J87: 99.625 | K87: 99.125 | L87: 0 | N87: 8.875
B88: ='Closed End Seconds (FL)'!A17 -> 9 | C88: ='Closed End Seconds (FL)'!B17 -> 99.875 | D88: ='Closed End Seconds (FL)'!C17 -> 99.375 | E88: ='Closed End Seconds (FL)'!D17 -> 0 | H88: 7 | I88: 9 | J88: 99.875 | K88: 99.375 | L88: 0 | N88: 9
B89: ='Closed End Seconds (FL)'!A18 -> 9.125 | C89: ='Closed End Seconds (FL)'!B18 -> 100.125 | D89: ='Closed End Seconds (FL)'!C18 -> 99.625 | E89: ='Closed End Seconds (FL)'!D18 -> 0 | G89: =IF('Closed End Seconds (FL)'!T13=C3,C4,'Closed End Seconds (FL)'!T13) -> Choose a Selection | H89: 8 | I89: 9.125 | J89: 100.125 | K89: 99.625 | L89: 0 | N89: 9.125
B90: ='Closed End Seconds (FL)'!A19 -> 9.25 | C90: ='Closed End Seconds (FL)'!B19 -> 100.375 | D90: ='Closed End Seconds (FL)'!C19 -> 99.875 | E90: ='Closed End Seconds (FL)'!D19 -> 0 | H90: 9 | I90: 9.25 | J90: 100.375 | K90: 99.875 | L90: 0 | N90: 9.25
B91: ='Closed End Seconds (FL)'!A20 -> 9.375 | C91: ='Closed End Seconds (FL)'!B20 -> 100.625 | D91: ='Closed End Seconds (FL)'!C20 -> 100.125 | E91: ='Closed End Seconds (FL)'!D20 -> 0 | H91: 10 | I91: 9.375 | J91: 100.625 | K91: 100.125 | L91: 0 | N91: 9.375
B92: ='Closed End Seconds (FL)'!A21 -> 9.5 | C92: ='Closed End Seconds (FL)'!B21 -> 100.875 | D92: ='Closed End Seconds (FL)'!C21 -> 100.375 | E92: ='Closed End Seconds (FL)'!D21 -> 0 | H92: 11 | I92: 9.5 | J92: 100.875 | K92: 100.375 | L92: 0 | N92: 9.5
B93: ='Closed End Seconds (FL)'!A22 -> 9.625 | C93: ='Closed End Seconds (FL)'!B22 -> 101.375 | D93: ='Closed End Seconds (FL)'!C22 -> 100.875 | E93: ='Closed End Seconds (FL)'!D22 -> 0 | H93: 12 | I93: 9.625 | J93: 101.375 | K93: 100.875 | L93: 0 | N93: 9.625
B94: ='Closed End Seconds (FL)'!A23 -> 9.75 | C94: ='Closed End Seconds (FL)'!B23 -> 101.875 | D94: ='Closed End Seconds (FL)'!C23 -> 101.375 | E94: ='Closed End Seconds (FL)'!D23 -> 0 | H94: 13 | I94: 9.75 | J94: 101.875 | K94: 101.375 | L94: 0 | N94: 9.75
B95: ='Closed End Seconds (FL)'!A24 -> 9.875 | C95: ='Closed End Seconds (FL)'!B24 -> 102.375 | D95: ='Closed End Seconds (FL)'!C24 -> 101.875 | E95: ='Closed End Seconds (FL)'!D24 -> 0 | H95: 14 | I95: 9.875 | J95: 102.375 | K95: 101.875 | L95: 0 | N95: 9.875
B96: ='Closed End Seconds (FL)'!A25 -> 10 | C96: ='Closed End Seconds (FL)'!B25 -> 102.875 | D96: ='Closed End Seconds (FL)'!C25 -> 102.375 | E96: ='Closed End Seconds (FL)'!D25 -> 0 | H96: 15 | I96: 10 | J96: =C96+$G$82 -> 102.875 | K96: =D96+$G$82 -> 102.375 | L96: =E96+$G$82 -> 0 | N96: 10
B97: ='Closed End Seconds (FL)'!A26 -> 10.125 | C97: ='Closed End Seconds (FL)'!B26 -> 103.125 | D97: ='Closed End Seconds (FL)'!C26 -> 102.625 | E97: ='Closed End Seconds (FL)'!D26 -> 0 | H97: 16 | I97: 10.125 | J97: 103.125 | K97: 102.625 | L97: 0 | N97: 10.125
B98: ='Closed End Seconds (FL)'!A27 -> 10.25 | C98: ='Closed End Seconds (FL)'!B27 -> 103.375 | D98: ='Closed End Seconds (FL)'!C27 -> 102.875 | E98: ='Closed End Seconds (FL)'!D27 -> 0 | H98: 17 | I98: 10.25 | J98: 103.375 | K98: 102.875 | L98: 0 | N98: 10.25
B99: ='Closed End Seconds (FL)'!A28 -> 10.375 | C99: ='Closed End Seconds (FL)'!B28 -> 103.625 | D99: ='Closed End Seconds (FL)'!C28 -> 103.125 | E99: ='Closed End Seconds (FL)'!D28 -> 0 | H99: 18 | I99: 10.375 | J99: 103.625 | K99: 103.125 | L99: 0 | N99: 10.375
B100: ='Closed End Seconds (FL)'!A29 -> 10.5 | C100: ='Closed End Seconds (FL)'!B29 -> 103.875 | D100: ='Closed End Seconds (FL)'!C29 -> 103.375 | E100: ='Closed End Seconds (FL)'!D29 -> 0 | H100: 19 | I100: 10.5 | J100: 103.875 | K100: 103.375 | L100: 0 | N100: 10.5
B101: ='Closed End Seconds (FL)'!A30 -> 10.625 | C101: ='Closed End Seconds (FL)'!B30 -> 104.125 | D101: ='Closed End Seconds (FL)'!C30 -> 103.625 | E101: ='Closed End Seconds (FL)'!D30 -> 0 | H101: 20 | I101: 10.625 | J101: 104.125 | K101: 103.625 | L101: 0 | N101: 10.625
B102: ='Closed End Seconds (FL)'!A31 -> 10.75 | C102: ='Closed End Seconds (FL)'!B31 -> 104.375 | D102: ='Closed End Seconds (FL)'!C31 -> 103.875 | E102: ='Closed End Seconds (FL)'!D31 -> 0 | H102: 21 | I102: 10.75 | J102: 104.375 | K102: 103.875 | L102: 0 | N102: 10.75
B103: ='Closed End Seconds (FL)'!A32 -> 10.875 | C103: ='Closed End Seconds (FL)'!B32 -> 104.625 | D103: ='Closed End Seconds (FL)'!C32 -> 104.125 | E103: ='Closed End Seconds (FL)'!D32 -> 0 | H103: 22 | I103: 10.875 | J103: 104.625 | K103: 104.125 | L103: 0 | N103: 10.875
B104: ='Closed End Seconds (FL)'!A33 -> 11 | C104: ='Closed End Seconds (FL)'!B33 -> 104.875 | D104: ='Closed End Seconds (FL)'!C33 -> 104.375 | E104: ='Closed End Seconds (FL)'!D33 -> 0 | H104: 23 | I104: 11 | J104: 104.875 | K104: 104.375 | L104: 0 | N104: 11
B105: ='Closed End Seconds (FL)'!A34 -> 11.125 | C105: ='Closed End Seconds (FL)'!B34 -> 105.125 | D105: ='Closed End Seconds (FL)'!C34 -> 104.625 | E105: ='Closed End Seconds (FL)'!D34 -> 0 | H105: 24 | I105: 11.125 | J105: 105.125 | K105: 104.625 | L105: 0 | N105: 11.125
B106: ='Closed End Seconds (FL)'!A35 -> 11.25 | C106: ='Closed End Seconds (FL)'!B35 -> 105.375 | D106: ='Closed End Seconds (FL)'!C35 -> 104.875 | E106: ='Closed End Seconds (FL)'!D35 -> 0 | H106: 25 | I106: 11.25 | J106: 105.375 | K106: 104.875 | L106: 0 | N106: 11.25
B107: ='Closed End Seconds (FL)'!A36 -> 11.375 | C107: ='Closed End Seconds (FL)'!B36 -> 105.625 | D107: ='Closed End Seconds (FL)'!C36 -> 105.125 | E107: ='Closed End Seconds (FL)'!D36 -> 0 | H107: 26 | I107: 11.375 | J107: 105.625 | K107: 105.125 | L107: 0 | N107: 11.375
B108: ='Closed End Seconds (FL)'!A37 -> 11.5 | C108: ='Closed End Seconds (FL)'!B37 -> 105.875 | D108: ='Closed End Seconds (FL)'!C37 -> 105.375 | E108: ='Closed End Seconds (FL)'!D37 -> 0 | H108: 27 | I108: 11.5 | J108: 105.875 | K108: 105.375 | L108: 0 | N108: 11.5
B109: ='Closed End Seconds (FL)'!A38 -> 11.625 | C109: ='Closed End Seconds (FL)'!B38 -> 106.125 | D109: ='Closed End Seconds (FL)'!C38 -> 105.625 | E109: ='Closed End Seconds (FL)'!D38 -> 0 | H109: 28 | I109: 11.625 | J109: 106.125 | K109: 105.625 | L109: 0 | N109: 11.625
B110: ='Closed End Seconds (FL)'!A39 -> 11.75 | C110: ='Closed End Seconds (FL)'!B39 -> 106.375 | D110: ='Closed End Seconds (FL)'!C39 -> 105.875 | E110: ='Closed End Seconds (FL)'!D39 -> 0 | H110: 29 | I110: 11.75 | J110: 106.375 | K110: 105.875 | L110: 0 | N110: 11.75
B111: ='Closed End Seconds (FL)'!A40 -> 11.875 | C111: ='Closed End Seconds (FL)'!B40 -> 106.625 | D111: ='Closed End Seconds (FL)'!C40 -> 106.125 | E111: ='Closed End Seconds (FL)'!D40 -> 0 | H111: 30 | I111: 11.875 | J111: 106.625 | K111: 106.125 | L111: 0 | N111: 11.875
B112: ='Closed End Seconds (FL)'!A41 -> 12 | C112: ='Closed End Seconds (FL)'!B41 -> 106.875 | D112: ='Closed End Seconds (FL)'!C41 -> 106.375 | E112: ='Closed End Seconds (FL)'!D41 -> 0 | H112: 31 | I112: 12 | J112: 106.875 | K112: 106.375 | L112: 0 | N112: 12
B113: ='Closed End Seconds (FL)'!A42 -> 12.125 | C113: ='Closed End Seconds (FL)'!B42 -> 107.125 | D113: ='Closed End Seconds (FL)'!C42 -> 106.625 | E113: ='Closed End Seconds (FL)'!D42 -> 0 | H113: 32 | I113: =B113 -> 12.125 | J113: =C113+$G$82 -> 107.125 | K113: =D113+$G$82 -> 106.625 | L113: =E113+$G$82 -> 0 | N113: 12.125
B114: ='Closed End Seconds (FL)'!A43 -> 12.25 | C114: ='Closed End Seconds (FL)'!B43 -> 107.375 | D114: ='Closed End Seconds (FL)'!C43 -> 106.875 | E114: ='Closed End Seconds (FL)'!D43 -> 0 | H114: 33 | I114: 12.25 | J114: 107.375 | K114: 106.875 | L114: 0 | N114: 12.25
B115: ='Closed End Seconds (FL)'!A44 -> 12.375 | C115: ='Closed End Seconds (FL)'!B44 -> 107.625 | D115: ='Closed End Seconds (FL)'!C44 -> 107.125 | E115: ='Closed End Seconds (FL)'!D44 -> 0 | H115: 34 | I115: 12.375 | J115: 107.625 | K115: 107.125 | L115: 0 | N115: 12.375
B116: ='Closed End Seconds (FL)'!A45 -> 12.5 | C116: ='Closed End Seconds (FL)'!B45 -> 107.875 | D116: ='Closed End Seconds (FL)'!C45 -> 107.375 | E116: ='Closed End Seconds (FL)'!D45 -> 0 | H116: 35 | I116: 12.5 | J116: 107.875 | K116: 107.375 | L116: 0 | N116: 12.5
B117: ='Closed End Seconds (FL)'!A46 -> 12.625 | C117: ='Closed End Seconds (FL)'!B46 -> 108 | D117: ='Closed End Seconds (FL)'!C46 -> 107.5 | E117: ='Closed End Seconds (FL)'!D46 -> 0 | H117: 36 | I117: 12.625 | J117: 108 | K117: 107.5 | L117: 0 | N117: 12.625
B118: ='Closed End Seconds (FL)'!A47 -> 12.75 | C118: ='Closed End Seconds (FL)'!B47 -> 108.125 | D118: ='Closed End Seconds (FL)'!C47 -> 107.625 | E118: ='Closed End Seconds (FL)'!D47 -> 0 | H118: 37 | I118: 12.75 | J118: 108.125 | K118: 107.625 | L118: 0 | N118: 12.75
B119: ='Closed End Seconds (FL)'!A48 -> 12.875 | C119: ='Closed End Seconds (FL)'!B48 -> 108.25 | D119: ='Closed End Seconds (FL)'!C48 -> 107.75 | E119: ='Closed End Seconds (FL)'!D48 -> 0 | H119: 38 | I119: 12.875 | J119: 108.25 | K119: 107.75 | L119: 0 | N119: 12.875
B120: ='Closed End Seconds (FL)'!A49 -> 13 | C120: ='Closed End Seconds (FL)'!B49 -> 108.375 | D120: ='Closed End Seconds (FL)'!C49 -> 107.875 | E120: ='Closed End Seconds (FL)'!D49 -> 0 | H120: 39 | I120: 13 | J120: 108.375 | K120: 107.875 | L120: 0 | N120: 13
B121: ='Closed End Seconds (FL)'!A50 -> 13.125 | C121: ='Closed End Seconds (FL)'!B50 -> 108.5 | D121: ='Closed End Seconds (FL)'!C50 -> 108 | E121: ='Closed End Seconds (FL)'!D50 -> 0 | H121: 40 | I121: 13.125 | J121: 108.5 | K121: 108 | L121: 0 | N121: 13.125
B122: ='Closed End Seconds (FL)'!A51 -> 13.25 | C122: ='Closed End Seconds (FL)'!B51 -> 108.625 | D122: ='Closed End Seconds (FL)'!C51 -> 108.125 | E122: ='Closed End Seconds (FL)'!D51 -> 0 | H122: 41 | I122: 13.25 | J122: 108.625 | K122: 108.125 | L122: 0 | N122: 13.25
B123: ='Closed End Seconds (FL)'!A52 -> 13.375 | C123: ='Closed End Seconds (FL)'!B52 -> 108.75 | D123: ='Closed End Seconds (FL)'!C52 -> 108.25 | E123: ='Closed End Seconds (FL)'!D52 -> 0 | H123: 42 | I123: 13.375 | J123: 108.75 | K123: 108.25 | L123: 0 | N123: 13.375
B124: ='Closed End Seconds (FL)'!A53 -> 13.5 | C124: ='Closed End Seconds (FL)'!B53 -> 108.875 | D124: ='Closed End Seconds (FL)'!C53 -> 108.375 | E124: ='Closed End Seconds (FL)'!D53 -> 0 | H124: 43 | I124: =B124 -> 13.5 | J124: =C124+$G$82 -> 108.875 | K124: =D124+$G$82 -> 108.375 | L124: =E124+$G$82 -> 0 | N124: 13.5
B125: ='Closed End Seconds (FL)'!A54 -> 13.625 | C125: ='Closed End Seconds (FL)'!B54 -> 109 | D125: ='Closed End Seconds (FL)'!C54 -> 108.5 | E125: ='Closed End Seconds (FL)'!D54 -> 0 | H125: 44 | I125: 13.625 | J125: 109 | K125: 108.5 | L125: 0 | N125: 13.625
B126: ='Closed End Seconds (FL)'!A55 -> 13.75 | C126: ='Closed End Seconds (FL)'!B55 -> 109.125 | D126: ='Closed End Seconds (FL)'!C55 -> 108.625 | E126: ='Closed End Seconds (FL)'!D55 -> 0 | H126: 45 | I126: 13.75 | J126: 109.125 | K126: 108.625 | L126: 0 | N126: 13.75
B127: ='Closed End Seconds (FL)'!A56 -> 0 | C127: ='Closed End Seconds (FL)'!B56 -> 0 | D127: ='Closed End Seconds (FL)'!C56 -> 0 | E127: ='Closed End Seconds (FL)'!D56 -> 0 | H127: 46 | I127: 0 | J127: 0 | K127: 0 | L127: 0
H128: 47
J129: =IFERROR(INDEX(OFFSET(J82:J126,0,-2),MATCH(TRUE,($J$82:$J$126)>=IF(E136>100,100,E136),0)),INDEX(OFFSET($J$82:$J$126,0,-2),MATCH(MAX($J$82:$J$126),$J$82:$J$126,0))) -> 1 | K129: =IFERROR(INDEX(OFFSET(K84:K126,0,-3),MATCH(TRUE,($K$84:$K$126)>=IF(E136>100,100,E136),0)),INDEX(OFFSET($K$84:$K$126,0,-3),MATCH(MAX($K$84:$K$126),$K$84:$K$126,0))) -> 3 | L129: =IFERROR(INDEX(OFFSET(L90:L126,0,-4),MATCH(TRUE,($L$90:$L$126)>=IF(E136>100,100,E136),0)),INDEX(OFFSET($L$90:$L$126,0,-4),MATCH(MAX($L$90:$L$126),$L$90:$L$126,0))) -> 9
I130: Par Rates | J130: =VLOOKUP(J129,H82:I128,2,FALSE) -> 8.25 | K130: =VLOOKUP(K129,H82:I128,2,FALSE) -> 8.5 | L130: =VLOOKUP(L129,H82:L128,2,FALSE) -> 9.25
J131: =IF(G89=J81,J130,0) -> 0 | K131: =IF(G89=K81,K130,0) -> 0 | L131: =IF(G89=L81,L130,0) -> 0
B132: ='Closed End Seconds (FL)'!N20 -> Max Price | E132: Rules | J132: =VLOOKUP(J129,H82:J128,3,FALSE) -> 98.375 | K132: =VLOOKUP(K129,H82:K128,4,FALSE) -> 98.375 | L132: =VLOOKUP(L129,H82:L128,5,FALSE) -> 0
B133: ='Closed End Seconds (FL)'!N21 -> 102 | E133: =IF(OR('Closed End Seconds (FL)'!T18=I3:I5),B133,"") ->  | J133: =IF(G89=J81,J132,0) -> 0 | K133: =IF(G89=K81,K132,0) -> 0 | L133: =IF(G89=L81,L132,0) -> 0 | N133: =IF(SUM(J131:L131)>E143,E143,SUM(J131:L131)) -> 0
N135: =SUM(J133:L133) -> 0
E136: =MIN(E133:E135) -> 0
I137: Near Par Rate (Borrower Paid) | K137: =IF(L137="","",N133) -> 0 | L137: =IF(IF(E143="",IF(N135>E136,E136,N135),IF(N135>INDEX($J$82:$L$127,MATCH($E$143,$I$82:$I$127,0),MATCH($G$89,$J$81:$L$81,0)),INDEX($J$82:$L$127,MATCH($E$143,$I$82:$I$127,0),MATCH($G$89,$J$81:$L$81,0)),N135))<E147,NA(),IF(E143="",IF(N135>E136,E136,N135),IF(N135>INDEX($J$82:$L$127,MATCH($E$143,$I$82:$I$127,0),MATCH($G$89,$J$81:$L$81,0)),INDEX($J$82:$L$127,MATCH($E$143,$I$82:$I$127,0),MATCH($G$89,$J$81:$L$81,0)),N135))) -> 0
B141: ='Closed End Seconds (FL)'!N26 -> Max Rate (CA) | E141: Rules
B142: ='Closed End Seconds (FL)'!N27 -> 12.25 | E142: =IF(OR('Closed End Seconds (FL)'!T21=N4),B142,"") -> 
E143: =IF(MIN(E142)=0,"",MIN(E142)) -> 
B145: ='Closed End Seconds (FL)'!N23 -> NC Floor Price | E145: Rules
B146: ='Closed End Seconds (FL)'!N24 -> 99.75 | E146: =IF(OR('Closed End Seconds (FL)'!T21=N5),B146,"") -> 
E147: =IF(MIN(E146)=0,0,MIN(E146)) -> 0

Sheet Cover Page (hidden)
J5: 19000 MacArthur Boulevard, 2nd Floor
J6: Irvine, CA 92612
B12: LoanStream Mortgage Wholesale NANQ Rate Sheet
C14: Underwriting Fee | F14: Relock Fee | I14: Mortgagee Clause | N14: Contact list
C15: NANQ | D15: 1295 | F15: -0.25 | I15: OCMBC, INC. ISAOA 19000 MacArthur Blvd, Ste. 200 Irvine, CA 92612 | N15: Corporate Headquarters: | Q15: Phone: | R15: 800-760-1833
C16: DOC Fee - All Loans | F16: Extension Fee | Q16: Email: | R16: Inquires@LSMortgage.com
C17: 79 | F17: 0.02/Day
N18: NAN-Q Prequals | Q18: Phone: | R18: Email Only
Q19: Email: | R19: EZQual@LSMortgage.com
C20: Current Turn Times | N20: U/W Loan Scenarios NAN-Q | Q20: Phone: | R20: Email Only
C21: Stage | E21: Turn Times | G21: Department Hours | J21: Cutoff Time | Q21: Email: | R21: NANQScenario@LSMortgage.com
C22: PreQual | E22: 24-48 Hours | G22: PreQual Desk Hours: 8:00 AM-5:00 PM PST | J22: 3:00 PM PST | N22: Submission Desk | Q22: Phone: | R22: Email Only
C23: Set-up | E23: 24-48 Hours | G23: Setup Desk Hours: 8:00 AM-6:00 PM PST | Q23: Email: | R23: Submissions_LS@LSMortgage.com
C24: New Underwrite | E24: 24-48 Hours | G24: Underwriting Hours: 7:00 AM-6:00 PM PST | J24: 3:00 PM PST | N24: Lock Desk: | Q24: Phone: | R24: 949-679-7059
C25: Conditions Review | E25: 24-48 Hours | G25: Underwriting Hours: 7:00 AM-6:00 PM PST | J25: 3:00 PM PST | Q25: Email: | R25: LockDesk@LSMortgage.com
C26: Part "A" QC | E26: 48-72 Hours | G26: PreQual Desk Hours: 8:00 AM-5:00 PM PST | J26: 3:30 PM PST | N26: CD Desk: | Q26: Phone: | R26: Email Only
C27: Lock Desk | E27: SameDay | G27: Lock Desk Hours are: 8:30 AM - 5:00 PM PST | J27: 5:00 PM PST | Q27: Email: | R27: CD@LSMortgage.com
C28: CTC Review | E28: SameDay | G28: Underwriting Hours: 7:00 AM-6:00 PM PST | J28: 1:00 PM PST | N28: Funding Department: | Q28: Phone: | R28: Email Only
C29: CD | E29: SameDay | G29: CD Desk Hours: 7:30 AM-6:00 PM PST | J29: 12:00 PM PST | Q29: Email: | R29: Funding@LSMortgage.com
C30: DOCS | E30: SameDay | G30: DOCS Desk Hours: 7:30 AM-6:00 PM PST | J30: 12:00 PM PST | N30: Management Escalations | Q30: Name: | R30: David Racer / Operations
C31: Funding | E31: SameDay | G31: Funding Desk Hours: 5:30 AM-5:00 PM PST | J31: 12:30 PM PST | Q31: Email: | R31: DRacer@LSMortgage.com
Q32: Name: | R32: Natalie Hernandez / Closing
Q33: Email: | R33: NHernandez@LSMortgage.com
Q34: Name: | R34: Nikki Allen / Underwriting
Q35: Email: | R35: NAllen@LSMortgage.com
Q36: Name: | R36: Adam Elway / Capital Markets
Q37: Email: | R37: AElway@LSMortgage.com
Q38: Name: | R38: Moe Aziz / Secondary
Q39: Email: | R39: MAziz@LSMortgage.com
B44: RATES AND LLPAs ARE SUBJECT TO CHANGE WITHOUT NOTICE.
B45: THIS INFORMATION IS INTENDED FOR PROFESSIONAL OR BUSINESS USE ONLY. NOT FOR CONSUMER DISTRIBUTION.

Sheet Sheet1 (hidden)
